fUSD/lending_fUSD_20240119
["ID","MTS","AMOUNT","RATE_DAILY","PERIOD"]
[312213097,1705687843044,-500.0,0.00024657,2]
[312213098,1705687843053,-500.0,0.00024657,2]
[312213099,1705687843062,-500.0,0.00024657,2]
[312213100,1705687843071,-503.34,0.00024657,2]
[312213101,1705687843080,-500.0,0.00024657,2]
[312213102,1705687843091,-500.0,0.00024657,2]
[312213103,1705687843100,-500.0,0.00024657,2]
[312213104,1705687843109,-500.0,0.00024657,2]
[312213105,1705687843119,-500.0,0.00024657,2]
[312213106,1705687843128,-500.0,0.00024657,2]
[312213107,1705687843137,-500.0,0.00024657,2]
[312213108,1705687843146,-500.0,0.00024657,2]
[312213109,1705687843154,-500.0,0.00024657,2]
[312213110,1705687843163,-500.0,0.00024657,2]
[312213111,1705687843172,-505.81275801,0.00024657,2]
[312213112,1705687843181,-500.0,0.00024657,2]
[312213113,1705687843190,-500.0,0.00024657,2]
[312213114,1705687843199,-175.12504411,0.00024657,2]
[312213129,1705687845792,-324.87495589,0.00024657,2]
[312213131,1705687845802,-133.12504411,0.00024657,2]
[312213132,1705687845813,-366.87495589,0.00024657,2]
[312213134,1705687845823,-310.8633322,0.00024657,2]
[312213144,1705687845907,-71.2903773,0.00024657,2]
[312213145,1705687845917,-500.0,0.00024657,2]
[312213146,1705687845926,-500.0,0.00024657,2]
[312213147,1705687845936,-567.28,0.00024657,2]
[312213149,1705687845946,-500.0,0.00024657,2]
[312213151,1705687845955,-269.17333671,0.00024657,2]
[312213153,1705687845965,-500.0,0.00024657,2]
[312213155,1705687845975,-500.0,0.00024657,2]
[312213157,1705687845984,-500.0,0.00024657,2]
[312213159,1705687845993,-500.0,0.00024657,2]
[312213161,1705687846003,-500.0,0.00024657,2]
[312213163,1705687846012,-500.0,0.00024657,2]
[312213165,1705687846021,-500.0,0.00024657,2]
[312213166,1705687846031,-500.0,0.00024657,2]
[312213168,1705687846040,-500.0,0.00024657,2]
[312213170,1705687846049,-500.0,0.00024657,2]
[312213172,1705687846058,-500.0,0.00024657,2]
[312213173,1705687846067,-346.64554089,0.00024657,2]
[312213174,1705687846075,-500.0,0.00024657,2]
[312213175,1705687846084,-500.0,0.00024657,2]
[312213176,1705687846093,-500.0,0.00024657,2]
[312213177,1705687846102,-500.0,0.00024657,2]
[312213181,1705687846270,-500.0,0.00024657,2]
[312213184,1705687846289,-500.0,0.00024657,2]
[312213186,1705687846298,-500.0,0.00024657,2]
[312213188,1705687846308,-500.0,0.00024657,2]
[312213190,1705687846317,-500.0,0.00024657,2]
[312213192,1705687846326,-500.0,0.00024657,2]
[312213194,1705687846336,-500.0,0.00024657,2]
[312213196,1705687846346,-146.66729698,0.00024657,2]
[312213199,1705687846367,-341.74739,0.00024657,2]
[312213211,1705688195181,-247.18324374,0.00020998,2]
[312213212,1705688195203,-1752.81675626,0.00020999,2]
[312213213,1705688196175,-268.1022341,0.00020999,2]
[312213214,1705688196197,-729.29,0.00021,2]
[312213215,1705688196217,-730.79426984,0.00021,2]
[312213216,1705688196238,-271.81349606,0.00021263,2]
[312213217,1705688196693,-170.04650394,0.00021263,2]
[312213218,1705688332226,-163.19,0.00022397,2]
[312213219,1705688332250,-200.0,0.00022444,2]
[312213220,1705688332270,-200.0,0.00022495,2]
[312213221,1705688347535,-2000.0,0.00022624,2]
[312213222,1705688348629,-1340.78,0.00022624,2]
[312213223,1705688348656,-218.5,0.00022682,2]
[312213224,1705688352720,250.0,0.00022569,2]
[312213225,1705688357691,190.72,0.0002258,2]
[312213226,1705688447153,427.77,0.00020852,2]
[312213227,1705688465134,941.39817646,0.00021601,2]
[312213228,1705688664695,-1008.11171313,0.00023,20]
[312213229,1705688710832,-1008.11171313,0.00023199,20]
[312213230,1705688711603,67.64182354,0.000219,2]
[312213231,1705688711628,182.35817646,0.000219,2]
[312213232,1705688724350,17.88828687,0.00023199,20]
[312213233,1705688755085,1817.64182354,0.0002227,2]
[312213234,1705688755107,182.35817646,0.0002227,2]
[312213235,1705688781186,203.93,0.00022305,2]
[312213237,1705688814385,250.0,0.00022279,2]
[312213241,1705688865478,-396.446525,0.00022518,2]
[312213242,1705688865498,-221.38,0.00022632,2]
[312213243,1705688865520,-328.68831819,0.0002267,2]
[312213244,1705688865540,-177.29,0.00022672,2]
[312213245,1705688865560,-693.55,0.00022672,2]
[312213246,1705688869645,162.91,0.00022543,2]
[312213247,1705688882454,19.73515681,0.00020852,2]
[312213248,1705688882476,386.64484319,0.00020852,2]
[312213249,1705688891380,204.54972174,0.00022279,2]
[312213256,1705688960470,241.91,0.00022555,2]
[312213259,1705689004218,203.0,0.00022274,2]
[312213274,1705689031696,-734.38,0.0002277,2]
[312213275,1705689031708,-840.0,0.0002277,2]
[312213276,1705689031719,-170.45,0.0002277,2]
[312213277,1705689031729,-328.68831816,0.00022856,2]
[312213278,1705689031739,-374.80760566,0.00022967,2]
[312213279,1705689031751,-757.74581086,0.00022967,2]
[312213284,1705689032064,-406.45312757,0.00022967,2]
[312213287,1705689032078,-1278.63538757,0.00022967,2]
[312213289,1705689032090,-150.0,0.00023,2]
[312213291,1705689032101,-1008.11171313,0.00023005,20]
[312213293,1705689032112,-150.0,0.00023005,2]
[312213295,1705689032122,-999.99,0.00023006,2]
[312213296,1705689032132,-43012.72684099,0.00023006,2]
[312213297,1705689032143,-155.0,0.00023006,2]
[312213298,1705689032153,-162.79,0.00023007,2]
[312213299,1705689032166,-2725.11,0.00023007,2]
[312213300,1705689032177,-9999.99,0.00023007,2]
[312213301,1705689032190,-328.68831816,0.00023042,2]
[312213302,1705689032201,-159.09,0.00023086,2]
[312213303,1705689032212,-499.99,0.00023086,2]
[312213304,1705689032224,-6496.62,0.00023086,2]
[312213305,1705689032235,-3829.03,0.00023086,2]
[312213306,1705689032245,-2518.9866,0.00023101,2]
[312213307,1705689032257,-151.9905901,0.00023101,2]
[312213308,1705689032268,-406.38,0.00023116,2]
[312213309,1705689032279,-162.91,0.00023131,2]
[312213310,1705689032290,-1491.85320775,0.00023199,2]
[312213311,1705689032302,-2007.62184804,0.000232,2]
[312213312,1705689032312,-812.7754651,0.00023201,2]
[312213313,1705689032324,-1000.0,0.00023201,2]
[312213314,1705689032335,-62980.8885,0.00023201,2]
[312213315,1705689032347,-500.0,0.00023201,2]
[312213316,1705689032358,-18816.5225,0.00023201,2]
[312213317,1705689032370,-1444.7711,0.00023201,2]
[312213318,1705689032382,-236.27,0.00023201,2]
[312213319,1705689032393,-573.1673,0.00023201,2]
[312213320,1705689032405,-682.7491,0.00023201,2]
[312213321,1705689032415,-1000.0,0.00023201,2]
[312213322,1705689032426,-328.68831816,0.00023228,2]
[312213323,1705689032435,-203.93,0.00023284,2]
[312213324,1705689032446,-441039.28070661,0.00023301,2]
[312213325,1705689032456,-2354.93382098,0.00023313,2]
[312213326,1705689032465,-328.68831816,0.00023413,2]
[312213327,1705689032475,-155.17341309,0.00023421,2]
[312213328,1705689032485,-420.5726,0.00023421,2]
[312213329,1705689032496,-328.68831816,0.00023599,2]
[312213330,1705689032507,-620.71324438,0.0002367,2]
[312213331,1705689032518,-162.91,0.00023718,2]
[312213332,1705689032528,-328.68831816,0.00023785,2]
[312213333,1705689032539,-328.68831816,0.00023971,2]
[312213334,1705689032549,-201.16205573,0.00024,2]
[312213335,1705689032559,-431.59040182,0.00024,2]
[312213336,1705689032570,-1611.2416,0.00024006,2]
[312213337,1705689032582,-48653.997,0.00024006,2]
[312213338,1705689032596,-151.9905901,0.0002415,2]
[312213339,1705689032606,-328.68831816,0.00024157,2]
[312213340,1705689032617,-1049.18887132,0.00024164,2]
[312213341,1705689032628,-1106.81414389,0.00024164,2]
[312213342,1705689032639,-1816.96137427,0.00024164,2]
[312213343,1705689032650,-203.93,0.00024262,2]
[312213344,1705689032661,-167.0,0.00024297,2]
[312213345,1705689032672,-328.68831816,0.00024343,2]
[312213346,1705689032685,-162.79,0.00024387,2]
[312213347,1705689032695,-170.45,0.00024455,2]
[312213348,1705689032705,-179.21914183,0.00024457,2]
[312213349,1705689032716,-150.00000001,0.00024459,2]
[312213350,1705689032727,-235.0,0.00024523,2]
[312213351,1705689032737,-5438.874,0.00024523,2]
[312213352,1705689032747,-405.58,0.00024523,2]
[312213353,1705689032759,-2274.0,0.00024523,2]
[312213354,1705689032769,-946.0,0.00024523,2]
[312213355,1705689032779,-836.0,0.00024523,2]
[312213356,1705689032790,-449.0,0.00024523,2]
[312213357,1705689032800,-231.743,0.00024523,2]
[312213358,1705689032811,-214.0,0.00024523,2]
[312213359,1705689032821,-328.68831816,0.00024528,2]
[312213360,1705689032831,-486.28507678,0.00024555,2]
[312213361,1705689032842,-156.58819109,0.00024555,2]
[312213362,1705689032852,-653.27583542,0.00024555,2]
[312213363,1705689032863,-614.9796451,0.00024556,2]
[312213364,1705689032874,-209.0,0.00024557,2]
[312213365,1705689032884,-31298.10431064,0.00024557,2]
[312213366,1705689032898,-404.62987885,0.00024557,2]
[312213369,1705689037608,-1646.88828687,0.00024557,2]
[312213370,1705689037840,-63664.28578625,0.00024557,2]
[312213371,1705689037855,-89053.74854093,0.00024557,2]
[312213372,1705689037869,-929.14869226,0.00024557,2]
[312213373,1705689038018,-58003.1945042,0.00024557,2]
[312213374,1705689038029,-2000.0,0.00024557,3]
[312213375,1705689038040,-8733.5803,0.00024557,2]
[312213376,1705689038051,-1968.56805598,0.00024557,2]
[312213377,1705689038062,-191.23153583,0.00024557,2]
[312213378,1705689038072,-163.53999278,0.00024557,2]
[312213380,1705689038082,-426.0,0.00024558,2]
[312213382,1705689038092,-319.0,0.00024558,2]
[312213384,1705689038103,-508.704,0.00024558,2]
[312213386,1705689038113,-224.28387949,0.00024654,2]
[312213388,1705689038124,-250.0,0.00024654,2]
[312213390,1705689038135,-4615.49693337,0.00024656,2]
[312213392,1705689038145,-500.0,0.00024657,2]
[312213394,1705689038155,-500.0,0.00024657,2]
[312213397,1705689038166,-500.0,0.00024657,2]
[312213399,1705689038176,-500.0,0.00024657,2]
[312213450,1705689038186,-500.0,0.00024657,2]
[312213453,1705689038654,-500.0,0.00024657,2]
[312213457,1705689038675,-500.0,0.00024657,2]
[312213459,1705689038691,-500.0,0.00024657,2]
[312213461,1705689038701,-500.0,0.00024657,2]
[312213463,1705689038710,-500.0,0.00024657,2]
[312213465,1705689038721,-500.0,0.00024657,2]
[312213467,1705689038731,-500.0,0.00024657,2]
[312213469,1705689038740,-500.0,0.00024657,2]
[312213471,1705689038749,-500.0,0.00024657,2]
[312213473,1705689038763,-500.0,0.00024657,2]
[312213475,1705689038773,-500.0,0.00024657,2]
[312213477,1705689038783,-500.0,0.00024657,2]
[312213479,1705689038793,-500.0,0.00024657,2]
[312213482,1705689038803,-500.0,0.00024657,2]
[312213484,1705689038812,-500.0,0.00024657,2]
[312213486,1705689038821,-591.46,0.00024657,2]
[312213488,1705689038832,-500.0,0.00024657,2]
[312213490,1705689038841,-399.4049568,0.00024657,2]
[312213492,1705689038850,-500.0,0.00024657,2]
[312213493,1705689038860,-500.0,0.00024657,2]
[312213496,1705689038870,-500.0,0.00024657,2]
[312213497,1705689038879,-500.0,0.00024657,2]
[312213499,1705689038889,-500.0,0.00024657,2]
[312213502,1705689038899,-500.0,0.00024657,2]
[312213504,1705689038908,-500.0,0.00024657,2]
[312213506,1705689038918,-500.0,0.00024657,2]
[312213508,1705689038928,-500.0,0.00024657,2]
[312213510,1705689038937,-500.0,0.00024657,2]
[312213512,1705689038946,-500.0,0.00024657,2]
[312213514,1705689038956,-500.0,0.00024657,2]
[312213516,1705689038965,-508.37475352,0.00024657,2]
[312213518,1705689038974,-500.0,0.00024657,2]
[312213520,1705689038984,-500.0,0.00024657,2]
[312213522,1705689038995,-174.8437244,0.00024657,2]
[312213524,1705689039004,-500.0,0.00024657,2]
[312213526,1705689039015,-500.0,0.00024657,2]
[312213528,1705689039024,-500.0,0.00024657,2]
[312213530,1705689039034,-500.0,0.00024657,2]
[312213532,1705689039043,-500.0,0.00024657,2]
[312213534,1705689039053,-500.0,0.00024657,2]
[312213536,1705689039062,-500.0,0.00024657,2]
[312213538,1705689039071,-500.0,0.00024657,2]
[312213540,1705689039082,-500.0,0.00024657,2]
[312213542,1705689039092,-500.0,0.00024657,2]
[312213544,1705689039101,-333.18173879,0.00024657,2]
[312213546,1705689039111,-534.50184495,0.00024657,2]
[312213548,1705689039120,-500.0,0.00024657,2]
[312213550,1705689039129,-500.0,0.00024657,2]
[312213552,1705689039139,-544.14,0.00024657,2]
[312213554,1705689039148,-500.0,0.00024657,2]
[312213556,1705689039158,-500.0,0.00024657,2]
[312213558,1705689039168,-500.0,0.00024657,2]
[312213560,1705689039177,-500.0,0.00024657,2]
[312213562,1705689039186,-620.61905636,0.00024657,2]
[312213564,1705689039195,-500.0,0.00024657,2]
[312213566,1705689039205,-500.0,0.00024657,2]
[312213568,1705689039216,-500.0,0.00024657,2]
[312213570,1705689039227,-500.0,0.00024657,2]
[312213573,1705689039237,-500.0,0.00024657,2]
[312213575,1705689039246,-1000.0,0.00024657,2]
[312213576,1705689039258,-500.0,0.00024657,2]
[312213579,1705689039267,-511.69871785,0.00024657,2]
[312213581,1705689039277,-500.0,0.00024657,2]
[312213583,1705689039286,-500.0,0.00024657,2]
[312213584,1705689039295,-500.0,0.00024657,2]
[312213587,1705689039305,-500.0,0.00024657,2]
[312213589,1705689039315,-500.0,0.00024657,2]
[312213591,1705689039324,-500.0,0.00024657,2]
[312213593,1705689039334,-500.0,0.00024657,2]
[312213594,1705689039343,-500.0,0.00024657,2]
[312213596,1705689039352,-500.0,0.00024657,2]
[312213598,1705689039361,-500.0,0.00024657,2]
[312213601,1705689039370,-500.0,0.00024657,2]
[312213603,1705689039379,-500.0,0.00024657,2]
[312213605,1705689039389,-500.0,0.00024657,2]
[312213607,1705689039398,-585.76,0.00024657,2]
[312213609,1705689039407,-500.0,0.00024657,2]
[312213611,1705689039416,-500.0,0.00024657,2]
[312213613,1705689039426,-500.0,0.00024657,2]
[312213615,1705689039436,-500.0,0.00024657,2]
[312213617,1705689039445,-500.0,0.00024657,2]
[312213619,1705689039454,-500.0,0.00024657,2]
[312213621,1705689039463,-530.48,0.00024657,2]
[312213623,1705689039472,-500.0,0.00024657,2]
[312213625,1705689039481,-500.0,0.00024657,2]
[312213627,1705689039491,-500.0,0.00024657,2]
[312213629,1705689039501,-500.0,0.00024657,2]
[312213631,1705689039511,-500.0,0.00024657,2]
[312213633,1705689039520,-500.0,0.00024657,2]
[312213635,1705689039530,-500.0,0.00024657,2]
[312213637,1705689039540,-500.0,0.00024657,2]
[312213639,1705689039549,-500.0,0.00024657,2]
[312213641,1705689039559,-500.0,0.00024657,2]
[312213643,1705689039568,-279.03,0.00024657,2]
[312213645,1705689039577,-500.0,0.00024657,2]
[312213647,1705689039587,-500.0,0.00024657,2]
[312213649,1705689039596,-500.0,0.00024657,2]
[312213651,1705689039605,-500.0,0.00024657,2]
[312213653,1705689039614,-500.0,0.00024657,2]
[312213655,1705689039623,-500.0,0.00024657,2]
[312213657,1705689039632,-340.22582021,0.00024657,2]
[312213659,1705689039642,-500.0,0.00024657,2]
[312213661,1705689039651,-330.00222273,0.00024657,2]
[312213663,1705689039660,-500.0,0.00024657,2]
[312213665,1705689039671,-500.0,0.00024657,2]
[312213667,1705689039680,-500.0,0.00024657,2]
[312213669,1705689039690,-500.0,0.00024657,2]
[312213671,1705689039700,-500.0,0.00024657,2]
[312213673,1705689039709,-500.0,0.00024657,2]
[312213675,1705689039718,-500.0,0.00024657,2]
[312213677,1705689039728,-500.0,0.00024657,2]
[312213679,1705689039737,-500.0,0.00024657,2]
[312213681,1705689039747,-500.0,0.00024657,2]
[312213683,1705689039760,-354.35903842,0.00024657,2]
[312213685,1705689039770,-313.93,0.00024657,2]
[312213687,1705689039780,-500.0,0.00024657,2]
[312213689,1705689039790,-500.0,0.00024657,2]
[312213691,1705689039799,-500.0,0.00024657,2]
[312213693,1705689039808,-500.0,0.00024657,2]
[312213695,1705689039817,-500.0,0.00024657,2]
[312213697,1705689039826,-500.0,0.00024657,2]
[312213699,1705689039835,-500.0,0.00024657,2]
[312213701,1705689039845,-514.59257588,0.00024657,2]
[312213703,1705689039854,-500.0,0.00024657,2]
[312213705,1705689039864,-500.0,0.00024657,2]
[312213707,1705689039874,-500.0,0.00024657,2]
[312213709,1705689039883,-500.0,0.00024657,2]
[312213711,1705689039893,-500.0,0.00024657,2]
[312213713,1705689039903,-500.0,0.00024657,2]
[312213715,1705689039912,-500.0,0.00024657,2]
[312213717,1705689039922,-500.0,0.00024657,2]
[312213719,1705689039932,-500.0,0.00024657,2]
[312213721,1705689039941,-252.17940412,0.00024657,2]
[312213723,1705689039950,-500.0,0.00024657,2]
[312213725,1705689039959,-500.0,0.00024657,2]
[312213727,1705689039969,-500.0,0.00024657,2]
[312213729,1705689039978,-500.0,0.00024657,2]
[312213731,1705689039988,-500.0,0.00024657,2]
[312213733,1705689039997,-500.0,0.00024657,2]
[312213735,1705689040007,-500.0,0.00024657,2]
[312213737,1705689040017,-540.9645925,0.00024657,2]
[312213739,1705689040026,-500.0,0.00024657,2]
[312213741,1705689040036,-500.0,0.00024657,2]
[312213743,1705689040047,-539.17,0.00024657,2]
[312213746,1705689040057,-500.0,0.00024657,2]
[312213748,1705689040067,-500.0,0.00024657,2]
[312213750,1705689040078,-500.0,0.00024657,2]
[312213751,1705689040088,-500.0,0.00024657,2]
[312213753,1705689040097,-500.0,0.00024657,2]
[312213757,1705689040107,-500.0,0.00024657,2]
[312213759,1705689040115,-500.0,0.00024657,2]
[312213761,1705689040125,-500.0,0.00024657,2]
[312213762,1705689040134,-500.0,0.00024657,2]
[312213764,1705689040144,-500.0,0.00024657,2]
[312213766,1705689040154,-500.0,0.00024657,2]
[312213769,1705689040165,-500.0,0.00024657,2]
[312213771,1705689040176,-500.0,0.00024657,2]
[312213773,1705689040186,-500.0,0.00024657,2]
[312213775,1705689040197,-500.0,0.00024657,2]
[312213777,1705689040206,-500.0,0.00024657,2]
[312213779,1705689040218,-500.0,0.00024657,2]
[312213781,1705689040227,-500.0,0.00024657,2]
[312213783,1705689040237,-307.09127362,0.00024657,2]
[312213785,1705689040246,-500.0,0.00024657,2]
[312213787,1705689040257,-500.0,0.00024657,2]
[312213788,1705689040266,-500.0,0.00024657,2]
[312213790,1705689040276,-500.0,0.00024657,2]
[312213792,1705689040285,-500.0,0.00024657,2]
[312213793,1705689040294,-500.0,0.00024657,2]
[312213794,1705689040304,-162.1882341,0.00024657,2]
[312213795,1705689040314,-328.34555412,0.00024657,2]
[312213796,1705689040323,-500.0,0.00024657,2]
[312213797,1705689040332,-500.0,0.00024657,2]
[312213798,1705689040341,-500.0,0.00024657,2]
[312213799,1705689040351,-500.0,0.00024657,2]
[312213800,1705689040360,-500.0,0.00024657,2]
[312213801,1705689040370,-208.19508037,0.00024657,2]
[312213802,1705689040379,-500.0,0.00024657,2]
[312213803,1705689040389,-500.0,0.00024657,2]
[312213804,1705689040398,-500.0,0.00024657,2]
[312213805,1705689040407,-500.0,0.00024657,2]
[312213806,1705689040417,-500.0,0.00024657,2]
[312213807,1705689040426,-500.0,0.00024657,2]
[312213808,1705689040435,-500.0,0.00024657,2]
[312213809,1705689040445,-500.0,0.00024657,2]
[312213810,1705689040454,-500.0,0.00024657,2]
[312213811,1705689040463,-500.0,0.00024657,2]
[312213812,1705689040472,-500.0,0.00024657,2]
[312213813,1705689040482,-500.0,0.00024657,2]
[312213814,1705689040491,-500.0,0.00024657,2]
[312213815,1705689040500,-500.0,0.00024657,2]
[312213816,1705689040511,-500.0,0.00024657,2]
[312213817,1705689040519,-500.0,0.00024657,2]
[312213818,1705689040528,-500.0,0.00024657,2]
[312213819,1705689040538,-604.2,0.00024657,2]
[312213820,1705689040547,-500.0,0.00024657,2]
[312213821,1705689040556,-500.0,0.00024657,2]
[312213822,1705689040565,-500.0,0.00024657,2]
[312213823,1705689040575,-500.0,0.00024657,2]
[312213824,1705689040584,-500.0,0.00024657,2]
[312213825,1705689040593,-500.0,0.00024657,2]
[312213826,1705689040603,-500.0,0.00024657,2]
[312213827,1705689040612,-500.0,0.00024657,2]
[312213828,1705689040622,-500.0,0.00024657,2]
[312213829,1705689040631,-500.0,0.00024657,2]
[312213830,1705689040641,-500.0,0.00024657,2]
[312213831,1705689040650,-500.0,0.00024657,2]
[312213832,1705689040659,-500.0,0.00024657,2]
[312213833,1705689040670,-500.0,0.00024657,2]
[312213834,1705689040679,-500.0,0.00024657,2]
[312213835,1705689040689,-500.0,0.00024657,2]
[312213836,1705689040698,-500.0,0.00024657,2]
[312213837,1705689040707,-500.0,0.00024657,2]
[312213838,1705689040717,-500.0,0.00024657,2]
[312213839,1705689040726,-205.04365538,0.00024657,2]
[312213840,1705689040735,-500.0,0.00024657,2]
[312213841,1705689040744,-500.0,0.00024657,2]
[312213842,1705689040753,-500.0,0.00024657,2]
[312213843,1705689040764,-500.0,0.00024657,2]
[312213844,1705689040773,-500.0,0.00024657,2]
[312213845,1705689040782,-500.0,0.00024657,2]
[312213846,1705689040791,-500.0,0.00024657,2]
[312213847,1705689040800,-500.0,0.00024657,10]
[312213848,1705689040809,-500.0,0.00024657,2]
[312213849,1705689040818,-500.0,0.00024657,2]
[312213850,1705689040828,-500.0,0.00024657,2]
[312213851,1705689040837,-500.0,0.00024657,2]
[312213852,1705689040847,-500.0,0.00024657,2]
[312213853,1705689040857,-500.0,0.00024657,2]
[312213854,1705689040867,-500.0,0.00024657,2]
[312213855,1705689040875,-582.84,0.00024657,2]
[312213856,1705689040884,-500.0,0.00024657,2]
[312213857,1705689040893,-500.0,0.00024657,2]
[312213858,1705689040903,-500.0,0.00024657,2]
[312213859,1705689040912,-500.0,0.00024657,2]
[312213860,1705689040921,-500.0,0.00024657,2]
[312213861,1705689040972,-500.0,0.00024657,2]
[312213862,1705689040983,-500.0,0.00024657,2]
[312213863,1705689040993,-500.0,0.00024657,2]
[312213864,1705689041002,-500.0,0.00024657,2]
[312213865,1705689041014,-500.0,0.00024657,2]
[312213866,1705689041024,-500.0,0.00024657,2]
[312213867,1705689041034,-500.0,0.00024657,2]
[312213868,1705689041044,-500.0,0.00024657,2]
[312213869,1705689041054,-500.0,0.00024657,2]
[312213870,1705689041063,-500.0,0.00024657,2]
[312213871,1705689041073,-500.0,0.00024657,2]
[312213872,1705689041082,-500.0,0.00024657,2]
[312213873,1705689041092,-500.0,0.00024657,2]
[312213874,1705689041101,-500.0,0.00024657,2]
[312213875,1705689041110,-500.0,0.00024657,2]
[312213876,1705689041120,-500.0,0.00024657,2]
[312213877,1705689041130,-500.0,0.00024657,2]
[312213878,1705689041140,-500.0,0.00024657,2]
[312213879,1705689041150,-519.77,0.00024657,2]
[312213880,1705689041160,-314.46761893,0.00024657,2]
[312213881,1705689041170,-500.0,0.00024657,2]
[312213882,1705689041180,-500.0,0.00024657,2]
[312213883,1705689041189,-500.0,0.00024657,2]
[312213884,1705689041199,-500.0,0.00024657,2]
[312213885,1705689041208,-500.0,0.00024657,2]
[312213886,1705689041218,-500.0,0.00024657,2]
[312213887,1705689041227,-500.0,0.00024657,2]
[312213888,1705689041236,-500.0,0.00024657,2]
[312213889,1705689041247,-500.0,0.00024657,2]
[312213890,1705689041256,-500.0,0.00024657,2]
[312213891,1705689041267,-500.0,0.00024657,2]
[312213892,1705689041276,-500.0,0.00024657,2]
[312213893,1705689041285,-500.0,0.00024657,2]
[312213894,1705689041294,-500.0,0.00024657,2]
[312213895,1705689041303,-500.0,0.00024657,2]
[312213896,1705689041312,-500.0,0.00024657,2]
[312213897,1705689041321,-500.0,0.00024657,2]
[312213898,1705689041330,-500.0,0.00024657,2]
[312213899,1705689041339,-500.0,0.00024657,2]
[312213900,1705689041348,-500.0,0.00024657,2]
[312213901,1705689041357,-500.0,0.00024657,2]
[312213902,1705689041367,-500.0,0.00024657,2]
[312213903,1705689041377,-500.0,0.00024657,2]
[312213904,1705689041386,-500.0,0.00024657,2]
[312213905,1705689041395,-500.0,0.00024657,2]
[312213906,1705689041404,-500.0,0.00024657,2]
[312213907,1705689041414,-500.0,0.00024657,2]
[312213908,1705689041424,-516.98247776,0.00024657,2]
[312213909,1705689041433,-500.0,0.00024657,2]
[312213910,1705689041443,-500.0,0.00024657,2]
[312213911,1705689041452,-500.0,0.00024657,2]
[312213912,1705689041461,-529.2,0.00024657,2]
[312213913,1705689041470,-500.0,0.00024657,2]
[312213914,1705689041479,-507.91396917,0.00024657,2]
[312213915,1705689041488,-500.0,0.00024657,2]
[312213916,1705689041497,-500.0,0.00024657,2]
[312213917,1705689041509,-500.0,0.00024657,2]
[312213918,1705689041518,-500.0,0.00024657,2]
[312213919,1705689041527,-500.0,0.00024657,2]
[312213920,1705689041536,-500.0,0.00024657,2]
[312213921,1705689041545,-500.0,0.00024657,2]
[312213922,1705689041555,-500.0,0.00024657,2]
[312213923,1705689041564,-500.0,0.00024657,2]
[312213924,1705689041573,-500.0,0.00024657,2]
[312213925,1705689041582,-500.0,0.00024657,2]
[312213926,1705689041591,-500.0,0.00024657,2]
[312213927,1705689041600,-500.0,0.00024657,2]
[312213928,1705689041608,-500.0,0.00024657,2]
[312213929,1705689041618,-500.0,0.00024657,2]
[312213930,1705689041627,-500.0,0.00024657,2]